{"text_format":"3","workbook":"xlsx","n_sheets":2,"sheets":["Apparatuurinventaris","Instellingen"],"not_rendered":{"defined_names":4},"read":"whole","date_system":"1900"}

{"sheet":"Apparatuurinventaris","index":0,"n_rows":35,"n_cols":6,"rows_kept":35,"merged":[[0,1,2,2],[0,4,0,5]]}
[]
[{"$nulls":4},"Items markeren die ouder zijn dan:"]
[{"$nulls":4},4]
[]
[null,"APPARATUUR-ID","ITEMNAAM","TOEGEWEZEN AAN","UITGIFTEDATUM","LEEFTIJD VAN ITEM"]
[null,"ITEM0001","stoel","Werknemer 1",{"$f":"TODAY()-25","v":"2012-11-26"},{"$f":"IF(tblApparatuurinventaris[[#This Row],[UITGIFTEDATUM]]<>\"\",TODAY()-tblApparatuurinventaris[[#This Row],[UITGIFTEDATUM]],\"\")","v":{"v":25,"d":"25 dagen"}}]
[null,"ITEM0002","laserprinter","Werknemer 2",{"$f":"TODAY()-479","v":"2011-08-30"},{"$f":"IF(tblApparatuurinventaris[[#This Row],[UITGIFTEDATUM]]<>\"\",TODAY()-tblApparatuurinventaris[[#This Row],[UITGIFTEDATUM]],\"\")","v":{"v":479,"d":"479 dagen"}}]
[null,"ITEM0003","scanner","Werknemer 3",{"$f":"TODAY()-177","v":"2012-06-27"},{"$f":"IF(tblApparatuurinventaris[[#This Row],[UITGIFTEDATUM]]<>\"\",TODAY()-tblApparatuurinventaris[[#This Row],[UITGIFTEDATUM]],\"\")","v":{"v":177,"d":"177 dagen"}}]
[null,"ITEM0004","laserprinter","Werknemer 7",{"$f":"TODAY()-18","v":"2012-12-03"},{"$f":"IF(tblApparatuurinventaris[[#This Row],[UITGIFTEDATUM]]<>\"\",TODAY()-tblApparatuurinventaris[[#This Row],[UITGIFTEDATUM]],\"\")","v":{"v":18,"d":"18 dagen"}}]
[null,"ITEM0005","koffiezetapparaat","Werknemer 20",{"$f":"TODAY()-227","v":"2012-05-08"},{"$f":"IF(tblApparatuurinventaris[[#This Row],[UITGIFTEDATUM]]<>\"\",TODAY()-tblApparatuurinventaris[[#This Row],[UITGIFTEDATUM]],\"\")","v":{"v":227,"d":"227 dagen"}}]
[null,"ITEM0006","scanner","Werknemer 14",{"$f":"TODAY()-50","v":"2012-11-01"},{"$f":"IF(tblApparatuurinventaris[[#This Row],[UITGIFTEDATUM]]<>\"\",TODAY()-tblApparatuurinventaris[[#This Row],[UITGIFTEDATUM]],\"\")","v":{"v":50,"d":"50 dagen"}}]
[null,"ITEM0007","tafel","Werknemer 4",{"$f":"TODAY()-120","v":"2012-08-23"},{"$f":"IF(tblApparatuurinventaris[[#This Row],[UITGIFTEDATUM]]<>\"\",TODAY()-tblApparatuurinventaris[[#This Row],[UITGIFTEDATUM]],\"\")","v":{"v":120,"d":"120 dagen"}}]
[null,"ITEM0008","kopieermachine","Werknemer 12",{"$f":"TODAY()-499","v":"2011-08-10"},{"$f":"IF(tblApparatuurinventaris[[#This Row],[UITGIFTEDATUM]]<>\"\",TODAY()-tblApparatuurinventaris[[#This Row],[UITGIFTEDATUM]],\"\")","v":{"v":499,"d":"499 dagen"}}]
[null,"ITEM0009","extra monitor","Werknemer 8",{"$f":"TODAY()-30","v":"2012-11-21"},{"$f":"IF(tblApparatuurinventaris[[#This Row],[UITGIFTEDATUM]]<>\"\",TODAY()-tblApparatuurinventaris[[#This Row],[UITGIFTEDATUM]],\"\")","v":{"v":30,"d":"30 dagen"}}]
[null,"ITEM0010","whiteboard","Werknemer 19",{"$f":"TODAY()-50","v":"2012-11-01"},{"$f":"IF(tblApparatuurinventaris[[#This Row],[UITGIFTEDATUM]]<>\"\",TODAY()-tblApparatuurinventaris[[#This Row],[UITGIFTEDATUM]],\"\")","v":{"v":50,"d":"50 dagen"}}]
[null,"ITEM0011","kopieermachine","Werknemer 12",{"$f":"TODAY()-450","v":"2011-09-28"},{"$f":"IF(tblApparatuurinventaris[[#This Row],[UITGIFTEDATUM]]<>\"\",TODAY()-tblApparatuurinventaris[[#This Row],[UITGIFTEDATUM]],\"\")","v":{"v":450,"d":"450 dagen"}}]
[null,"ITEM0012","briefpapier","Werknemer 18",{"$f":"TODAY()-420","v":"2011-10-28"},{"$f":"IF(tblApparatuurinventaris[[#This Row],[UITGIFTEDATUM]]<>\"\",TODAY()-tblApparatuurinventaris[[#This Row],[UITGIFTEDATUM]],\"\")","v":{"v":420,"d":"420 dagen"}}]
[null,"ITEM0013","extra monitor","Werknemer 8",{"$f":"TODAY()-250","v":"2012-04-15"},{"$f":"IF(tblApparatuurinventaris[[#This Row],[UITGIFTEDATUM]]<>\"\",TODAY()-tblApparatuurinventaris[[#This Row],[UITGIFTEDATUM]],\"\")","v":{"v":250,"d":"250 dagen"}}]
[null,"ITEM0014","koffiezetapparaat","Werknemer 9",{"$f":"TODAY()-45","v":"2012-11-06"},{"$f":"IF(tblApparatuurinventaris[[#This Row],[UITGIFTEDATUM]]<>\"\",TODAY()-tblApparatuurinventaris[[#This Row],[UITGIFTEDATUM]],\"\")","v":{"v":45,"d":"45 dagen"}}]
[null,"ITEM0015","briefpapier","Werknemer 13",{"$f":"TODAY()-502","v":"2011-08-07"},{"$f":"IF(tblApparatuurinventaris[[#This Row],[UITGIFTEDATUM]]<>\"\",TODAY()-tblApparatuurinventaris[[#This Row],[UITGIFTEDATUM]],\"\")","v":{"v":502,"d":"502 dagen"}}]
[null,"ITEM0016","scanner","Werknemer 1",{"$f":"TODAY()-350","v":"2012-01-06"},{"$f":"IF(tblApparatuurinventaris[[#This Row],[UITGIFTEDATUM]]<>\"\",TODAY()-tblApparatuurinventaris[[#This Row],[UITGIFTEDATUM]],\"\")","v":{"v":350,"d":"350 dagen"}}]
[null,"ITEM0017","kopieermachine","Werknemer 19",{"$f":"TODAY()-125","v":"2012-08-18"},{"$f":"IF(tblApparatuurinventaris[[#This Row],[UITGIFTEDATUM]]<>\"\",TODAY()-tblApparatuurinventaris[[#This Row],[UITGIFTEDATUM]],\"\")","v":{"v":125,"d":"125 dagen"}}]
[null,"ITEM0018","whiteboard","Werknemer 15",{"$f":"TODAY()-90","v":"2012-09-22"},{"$f":"IF(tblApparatuurinventaris[[#This Row],[UITGIFTEDATUM]]<>\"\",TODAY()-tblApparatuurinventaris[[#This Row],[UITGIFTEDATUM]],\"\")","v":{"v":90,"d":"90 dagen"}}]
[null,"ITEM0019","stoel","Werknemer 16",{"$f":"TODAY()-730","v":"2010-12-22"},{"$f":"IF(tblApparatuurinventaris[[#This Row],[UITGIFTEDATUM]]<>\"\",TODAY()-tblApparatuurinventaris[[#This Row],[UITGIFTEDATUM]],\"\")","v":{"v":730,"d":"730 dagen"}}]
[null,"ITEM0020","stofdoek (1 set)","Werknemer 3",{"$f":"TODAY()-540","v":"2011-06-30"},{"$f":"IF(tblApparatuurinventaris[[#This Row],[UITGIFTEDATUM]]<>\"\",TODAY()-tblApparatuurinventaris[[#This Row],[UITGIFTEDATUM]],\"\")","v":{"v":540,"d":"540 dagen"}}]
[null,"ITEM0021","laserprinter","Werknemer 7",{"$f":"TODAY()-18","v":"2012-12-03"},{"$f":"IF(tblApparatuurinventaris[[#This Row],[UITGIFTEDATUM]]<>\"\",TODAY()-tblApparatuurinventaris[[#This Row],[UITGIFTEDATUM]],\"\")","v":{"v":18,"d":"18 dagen"}}]
[null,"ITEM0022","laptopcomputer","Werknemer 8",{"$f":"TODAY()-283","v":"2012-03-13"},{"$f":"IF(tblApparatuurinventaris[[#This Row],[UITGIFTEDATUM]]<>\"\",TODAY()-tblApparatuurinventaris[[#This Row],[UITGIFTEDATUM]],\"\")","v":{"v":283,"d":"283 dagen"}}]
[null,"ITEM0023","briefpapier","Werknemer 9",{"$f":"TODAY()-479","v":"2011-08-30"},{"$f":"IF(tblApparatuurinventaris[[#This Row],[UITGIFTEDATUM]]<>\"\",TODAY()-tblApparatuurinventaris[[#This Row],[UITGIFTEDATUM]],\"\")","v":{"v":479,"d":"479 dagen"}}]
[null,"ITEM0024","laserprinter","Werknemer 19",{"$f":"TODAY()-355","v":"2012-01-01"},{"$f":"IF(tblApparatuurinventaris[[#This Row],[UITGIFTEDATUM]]<>\"\",TODAY()-tblApparatuurinventaris[[#This Row],[UITGIFTEDATUM]],\"\")","v":{"v":355,"d":"355 dagen"}}]
[null,"ITEM0025","tafel","Werknemer 7",{"$f":"TODAY()-28","v":"2012-11-23"},{"$f":"IF(tblApparatuurinventaris[[#This Row],[UITGIFTEDATUM]]<>\"\",TODAY()-tblApparatuurinventaris[[#This Row],[UITGIFTEDATUM]],\"\")","v":{"v":28,"d":"28 dagen"}}]
[null,"ITEM0026","whiteboard","Werknemer 8",{"$f":"TODAY()-28","v":"2012-11-23"},{"$f":"IF(tblApparatuurinventaris[[#This Row],[UITGIFTEDATUM]]<>\"\",TODAY()-tblApparatuurinventaris[[#This Row],[UITGIFTEDATUM]],\"\")","v":{"v":28,"d":"28 dagen"}}]
[null,"ITEM0027","laptopcomputer","Werknemer 19",{"$f":"TODAY()-736","v":"2010-12-16"},{"$f":"IF(tblApparatuurinventaris[[#This Row],[UITGIFTEDATUM]]<>\"\",TODAY()-tblApparatuurinventaris[[#This Row],[UITGIFTEDATUM]],\"\")","v":{"v":736,"d":"736 dagen"}}]
[null,"ITEM0028","tafel","Werknemer 12",{"$f":"TODAY()-68","v":"2012-10-14"},{"$f":"IF(tblApparatuurinventaris[[#This Row],[UITGIFTEDATUM]]<>\"\",TODAY()-tblApparatuurinventaris[[#This Row],[UITGIFTEDATUM]],\"\")","v":{"v":68,"d":"68 dagen"}}]
[null,"ITEM0029","scanner","Werknemer 14",{"$f":"TODAY()-67","v":"2012-10-15"},{"$f":"IF(tblApparatuurinventaris[[#This Row],[UITGIFTEDATUM]]<>\"\",TODAY()-tblApparatuurinventaris[[#This Row],[UITGIFTEDATUM]],\"\")","v":{"v":67,"d":"67 dagen"}}]
[null,"ITEM0030","koffiezetapparaat","Werknemer 3",{"$f":"TODAY()-149","v":"2012-07-25"},{"$f":"IF(tblApparatuurinventaris[[#This Row],[UITGIFTEDATUM]]<>\"\",TODAY()-tblApparatuurinventaris[[#This Row],[UITGIFTEDATUM]],\"\")","v":{"v":149,"d":"149 dagen"}}]

{"sheet":"Instellingen","index":1,"n_rows":23,"n_cols":4,"rows_kept":23}
[]
[]
[null,"WERKNEMERS",null,"ITEMS"]
[null,"Werknemer 1",null,"stoel"]
[null,"Werknemer 2",null,"koffiezetapparaat"]
[null,"Werknemer 3",null,"kopieermachine"]
[null,"Werknemer 4",null,"desktopcomputer"]
[null,"Werknemer 5",null,"stofdoek (1 set)"]
[null,"Werknemer 6",null,"extra monitor"]
[null,"Werknemer 7",null,"inkjetprinter"]
[null,"Werknemer 8",null,"laptopcomputer"]
[null,"Werknemer 9",null,"laserprinter"]
[null,"Werknemer 10",null,"markeerstiften (3 pakken)"]
[null,"Werknemer 11",null,"scanner"]
[null,"Werknemer 12",null,"briefpapier"]
[null,"Werknemer 13",null,"tafel"]
[null,"Werknemer 14",null,"USB-station"]
[null,"Werknemer 15",null,"whiteboard"]
[null,"Werknemer 16"]
[null,"Werknemer 17"]
[null,"Werknemer 18"]
[null,"Werknemer 19"]
[null,"Werknemer 20"]